[Event "2026 Biel Blitz Open"]
[Site "Biel, CH"]
[Date "2026.07.19"]
[Round "4"]
[White "Langner, Robin"]
[Black "Baury, Noe"]
[Result "0-1"]
[Board "33"]
[TimeControl "180+2"]
[WhiteFideId "34606190"]
[BlackFideId "651086867"]
[WhiteElo "2059"]
[BlackElo "1886"]
[WhiteClock "0:00:08"]
[BlackClock "0:00:25"]
[Variant "Standard"]
[Termination "forfeit"]
[EndDate "2026.07.19"]
[EndTime "12:51:31"]

1. d4 {[%clk 0:03:02]}  Nf6 {[%clk 0:03:03]} 2. c4 {[%clk 0:03:04]}  e6 {[%clk 0:03:05]} 3. g3 {[%clk 0:03:04]}  d5 {[%clk 0:03:02]}
4. Bg2 {[%clk 0:03:05]}  Be7 {[%clk 0:03:03]} 5. Nf3 {[%clk 0:03:06]}  O-O {[%clk 0:03:04]} 6. O-O {[%clk 0:03:07]}  b6 {[%clk 0:02:59]}
7. cxd5 {[%clk 0:03:07]}  exd5 {[%clk 0:03:00]} 8. Nc3 {[%clk 0:03:07]}  Bb7 {[%clk 0:03:01]} 9. Bf4 {[%clk 0:03:08]}  Nbd7 {[%clk 0:02:52]}
10. Nb5 {[%clk 0:02:33]}  c6 {[%clk 0:02:47]} 11. Nd6 {[%clk 0:02:33]}  Ba6 {[%clk 0:02:34]} 12. Rc1 {[%clk 0:02:27]}  Bxd6 {[%clk 0:02:30]}
13. Bxd6 {[%clk 0:02:28]}  Re8 {[%clk 0:02:32]} 14. Re1 {[%clk 0:02:22]}  Ne4 {[%clk 0:02:28]} 15. Bf4 {[%clk 0:01:58]}  Rc8 {[%clk 0:02:11]}
16. Qa4 {[%clk 0:01:51]}  Bb5 {[%clk 0:02:04]} 17. Qxa7 {[%clk 0:01:36]}  Ra8 {[%clk 0:02:01]} 18. Qc7 {[%clk 0:01:36]}  Rxa2 {[%clk 0:01:52]}
19. Qxd8 {[%clk 0:01:30]}  Rxd8 {[%clk 0:01:53]} 20. Rc2 {[%clk 0:01:30]}  Ba4 {[%clk 0:01:47]} 21. Rcc1 {[%clk 0:01:22]}  Rxb2 {[%clk 0:01:47]}
22. Rb1 {[%clk 0:01:17]}  Rxb1 {[%clk 0:01:42]} 23. Rxb1 {[%clk 0:01:19]}  c5 {[%clk 0:01:29]} 24. Bc7 {[%clk 0:01:05]}  Rc8 {[%clk 0:01:27]}
25. Bxb6 {[%clk 0:01:04]}  Rb8 {[%clk 0:01:17]} 26. Ra1 {[%clk 0:00:59]}  Nxb6 {[%clk 0:01:17]} 27. dxc5 {[%clk 0:00:54]}  Nxc5 {[%clk 0:01:14]}
28. Nd4 {[%clk 0:00:56]}  Nb3 {[%clk 0:01:05]} 29. Nxb3 {[%clk 0:00:46]}  Bxb3 {[%clk 0:01:06]} 30. Ra7 {[%clk 0:00:41]}  Bc4 {[%clk 0:01:05]}
31. Bf3 {[%clk 0:00:42]}  Nc8 {[%clk 0:00:58]} 32. Rd7 {[%clk 0:00:40]}  Nb6 {[%clk 0:00:58]} 33. Ra7 {[%clk 0:00:41]}  g6 {[%clk 0:00:58]}
34. Kg2 {[%clk 0:00:40]}  Kg7 {[%clk 0:00:56]} 35. h4 {[%clk 0:00:41]}  h5 {[%clk 0:00:57]} 36. Rc7 {[%clk 0:00:37]}  Rc8 {[%clk 0:00:52]}
37. Rb7 {[%clk 0:00:38]}  Na4 {[%clk 0:00:51]} 38. Rd7 {[%clk 0:00:33]}  Nc3 {[%clk 0:00:52]} 39. e3 {[%clk 0:00:32]}  Bd3 {[%clk 0:00:53]}
40. Kh2 {[%clk 0:00:26]}  Be4 {[%clk 0:00:52]} 41. Kg2 {[%clk 0:00:27]}  Bxf3+ {[%clk 0:00:49]} 42. Kxf3 {[%clk 0:00:28]}  Rc5 {[%clk 0:00:44]}
43. Ra7 {[%clk 0:00:27]}  Nb5 {[%clk 0:00:44]} 44. Rd7 {[%clk 0:00:27]}  Kf6 {[%clk 0:00:39]} 45. Rb7 {[%clk 0:00:27]}  d4 {[%clk 0:00:36]}
46. Rb6+ {[%clk 0:00:27]}  Kg7 {[%clk 0:00:35]} 47. exd4 {[%clk 0:00:24]}  Nxd4+ {[%clk 0:00:36]} 48. Ke3 {[%clk 0:00:26]}  Nf5+ {[%clk 0:00:36]}
49. Kf3 {[%clk 0:00:27]}  Rc3+ {[%clk 0:00:37]} 50. Kg2 {[%clk 0:00:28]}  Rc2 {[%clk 0:00:33]} 51. Kf3 {[%clk 0:00:27]}  Rc3+ {[%clk 0:00:34]}
52. Kg2 {[%clk 0:00:28]}  Nh6 {[%clk 0:00:33]} 53. Rb2 {[%clk 0:00:26]}  Ng4 {[%clk 0:00:34]} 54. Ra2 {[%clk 0:00:26]}  f6 {[%clk 0:00:34]}
55. Ra7+ {[%clk 0:00:26]}  Kh6 {[%clk 0:00:35]} 56. Ra2 {[%clk 0:00:27]}  g5 {[%clk 0:00:36]} 57. hxg5+ {[%clk 0:00:26]}  fxg5 {[%clk 0:00:37]}
58. Ra6+ {[%clk 0:00:27]}  Kg7 {[%clk 0:00:38]} 59. Ra7+ {[%clk 0:00:28]}  Kg6 {[%clk 0:00:39]} 60. Ra6+ {[%clk 0:00:29]}  Nf6 {[%clk 0:00:37]}
61. Ra2 {[%clk 0:00:26]}  g4 {[%clk 0:00:36]} 62. Re2 {[%clk 0:00:25]}  Rf3 {[%clk 0:00:34]} 63. Ra2 {[%clk 0:00:26]}  Ne4 {[%clk 0:00:31]}
64. Ra6+ {[%clk 0:00:27]}  Rf6 {[%clk 0:00:35]} 65. Ra2 {[%clk 0:00:28]}  Kg5 {[%clk 0:00:33]} 66. Ra5+ {[%clk 0:00:28]}  Rf5 {[%clk 0:00:34]}
67. Ra2 {[%clk 0:00:27]}  Kg6 {[%clk 0:00:29]} 68. Ra6+ {[%clk 0:00:28]}  Rf6 {[%clk 0:00:30]} 69. Ra2 {[%clk 0:00:29]}  Ng5 {[%clk 0:00:32]}
70. Rb2 {[%clk 0:00:26]}  Nf3 {[%clk 0:00:33]} 71. Rb1 {[%clk 0:00:26]}  Rd6 {[%clk 0:00:34]} 72. Ra1 {[%clk 0:00:23]}  Kf5 {[%clk 0:00:34]}
73. Ra5+ {[%clk 0:00:24]}  Ne5 {[%clk 0:00:35]} 74. Ra1 {[%clk 0:00:25]}  Rd2 {[%clk 0:00:35]} 75. Kf1 {[%clk 0:00:23]}  Nd3 {[%clk 0:00:31]}
76. Ra5+ {[%clk 0:00:22]}  Ke4 {[%clk 0:00:31]} 77. Rxh5 {[%clk 0:00:19]}  Rxf2+ {[%clk 0:00:31]} 78. Kg1 {[%clk 0:00:21]}  Kf3 {[%clk 0:00:29]}
79. Rd5 {[%clk 0:00:15]}  Rd2 {[%clk 0:00:29]} 80. Rd8 {[%clk 0:00:05]}  Kxg3 {[%clk 0:00:30]} 81. Kf1 {[%clk 0:00:06]}  Rf2+ {[%clk 0:00:24]}
82. Kg1 {[%clk 0:00:07]}  Nf4 {[%clk 0:00:25]} 83. Ra8 {[%clk 0:00:07]}  Ne2+ {[%clk 0:00:25]} 84. Kh1 {[%clk 0:00:08]}  Rf1# {[%clk 0:00:25]} 0-1

[Event "2026 Biel Blitz Open"]
[Site "Biel, CH"]
[Date "2026.07.19"]
[Round "4"]
[White "Leuthold, Cyrill"]
[Black "Tkhoruk, Roman"]
[Result "0-1"]
[Board "34"]
[TimeControl "180+2"]
[WhiteFideId "1333011"]
[BlackFideId "34161589"]
[WhiteElo "1887"]
[BlackElo "2055"]
[WhiteClock "0:00:03"]
[BlackClock "0:00:09"]
[Variant "Standard"]
[EndDate "2026.07.19"]
[EndTime "12:54:53"]

1. d4 {[%clk 0:03:02]}  Nf6 {[%clk 0:03:03]} 2. Nf3 {[%clk 0:03:02]}  d5 {[%clk 0:03:04]} 3. c3 {[%clk 0:03:02]}  Bf5 {[%clk 0:03:01]}
4. Qb3 {[%clk 0:03:02]}  Qc8 {[%clk 0:03:02]} 5. c4 {[%clk 0:03:02]}  e6 {[%clk 0:03:02]} 6. cxd5 {[%clk 0:03:01]}  exd5 {[%clk 0:03:03]}
7. Nc3 {[%clk 0:03:02]}  c6 {[%clk 0:03:04]} 8. Bf4 {[%clk 0:03:01]}  Be7 {[%clk 0:03:02]} 9. Rc1 {[%clk 0:03:00]}  O-O {[%clk 0:03:02]}
10. e3 {[%clk 0:02:58]}  Nbd7 {[%clk 0:02:30]} 11. Be2 {[%clk 0:02:56]}  Nb6 {[%clk 0:02:25]} 12. h3 {[%clk 0:02:44]}  h6 {[%clk 0:02:05]}
13. a4 {[%clk 0:02:36]}  Ne4 {[%clk 0:01:44]} 14. a5 {[%clk 0:02:21]}  Nxc3 {[%clk 0:01:43]} 15. bxc3 {[%clk 0:02:13]}  Nd7 {[%clk 0:01:42]}
16. O-O {[%clk 0:02:01]}  Nf6 {[%clk 0:01:36]} 17. c4 {[%clk 0:01:56]}  Qd7 {[%clk 0:01:34]} 18. Ne5 {[%clk 0:01:50]}  Qc8 {[%clk 0:01:22]}
19. cxd5 {[%clk 0:01:47]}  Nxd5 {[%clk 0:01:20]} 20. Bg3 {[%clk 0:01:33]}  f6 {[%clk 0:01:09]} 21. Nc4 {[%clk 0:01:09]}  Qd7 {[%clk 0:00:59]}
22. Bf3 {[%clk 0:01:01]}  Be6 {[%clk 0:00:40]} 23. Qb2 {[%clk 0:00:21]}  Nb4 {[%clk 0:00:36]} 24. Rfd1 {[%clk 0:00:12]}  Bxc4 {[%clk 0:00:25]}
25. Rxc4 {[%clk 0:00:11]}  Nd5 {[%clk 0:00:24]} 26. Rb1 {[%clk 0:00:07]}  b5 {[%clk 0:00:16]} 27. Bxd5+ {[%clk 0:00:05]}  Qxd5 {[%clk 0:00:17]}
28. Rc2 {[%clk 0:00:04]}  a6 {[%clk 0:00:18]} 29. Kf1 {[%clk 0:00:03]}  f5 {[%clk 0:00:17]} 30. Rbc1 {[%clk 0:00:03]}  Rac8 {[%clk 0:00:16]}
31. Qc3 {[%clk 0:00:03]}  c5 {[%clk 0:00:13]} 32. Qd2 {[%clk 0:00:03]}  c4 {[%clk 0:00:13]} 33. f3 {[%clk 0:00:03]}  Bd6 {[%clk 0:00:11]}
34. Bxd6 {[%clk 0:00:04]}  Qxd6 {[%clk 0:00:12]} 35. Kg1 {[%clk 0:00:04]}  Qd5 {[%clk 0:00:12]} 36. Re1 {[%clk 0:00:04]}  Rfe8 {[%clk 0:00:12]}
37. Qe2 {[%clk 0:00:05]}  b4 {[%clk 0:00:12]} 38. Rec1 {[%clk 0:00:02]}  c3 {[%clk 0:00:13]} 39. Qxa6 {[%clk 0:00:05]}  Rc6 {[%clk 0:00:12]}
40. Qb7 {[%clk 0:00:05]}  Rxe3 {[%clk 0:00:10]} 41. a6 {[%clk 0:00:06]}  Re8 {[%clk 0:00:07]} 42. a7 {[%clk 0:00:07]}  Qxd4+ {[%clk 0:00:07]}
43. Kh1 {[%clk 0:00:09]}  Rcc8 {[%clk 0:00:08]} 44. Ra2 {[%clk 0:00:08]}  Ra8 {[%clk 0:00:09]} 45. Rca1 {[%clk 0:00:08]}  c2 {[%clk 0:00:09]}
46. Qc6 {[%clk 0:00:08]}  b3 {[%clk 0:00:09]} 47. Ra4 {[%clk 0:00:09]}  b2 {[%clk 0:00:09]} 48. Rxd4 {[%clk 0:00:08]}  bxa1=Q+ {[%clk 0:00:08]}
49. Kh2 {[%clk 0:00:09]}  Qxd4 {[%clk 0:00:09]} 50. Qa6 {[%clk 0:00:03]} 0-1

[Event "2026 Biel Blitz Open"]
[Site "Biel, CH"]
[Date "2026.07.19"]
[Round "4"]
[White "Stefan, Iulia-Cristiana"]
[Black "Huang,Hsuan-Chen"]
[Result "0-1"]
[Board "35"]
[TimeControl "180+2"]
[WhiteFideId "1273876"]
[BlackFideId "16303121"]
[WhiteElo "2050"]
[BlackElo "1833"]
[WhiteTitle "WFM"]
[WhiteClock "0:00:04"]
[BlackClock "0:00:39"]
[Variant "Standard"]
[EndDate "2026.07.19"]
[EndTime "12:48:23"]

1. d4 {[%clk 0:03:03]}  d5 {[%clk 0:03:03]} 2. Nf3 {[%clk 0:03:05]}  Nf6 {[%clk 0:03:04]} 3. c4 {[%clk 0:03:06]}  e6 {[%clk 0:03:05]}
4. Bg5 {[%clk 0:03:08]}  Be7 {[%clk 0:03:05]} 5. Nc3 {[%clk 0:03:08]}  c6 {[%clk 0:03:06]} 6. e3 {[%clk 0:03:09]}  Nbd7 {[%clk 0:03:03]}
7. Rc1 {[%clk 0:03:09]}  O-O {[%clk 0:03:07]} 8. Bd3 {[%clk 0:03:08]}  Re8 {[%clk 0:03:05]} 9. O-O {[%clk 0:03:01]}  h6 {[%clk 0:03:04]}
10. Bh4 {[%clk 0:03:02]}  dxc4 {[%clk 0:03:02]} 11. Bxc4 {[%clk 0:03:03]}  Nd5 {[%clk 0:03:03]} 12. Bxe7 {[%clk 0:02:45]}  Qxe7 {[%clk 0:03:03]}
13. Ne4 {[%clk 0:02:05]}  a5 {[%clk 0:02:43]} 14. a3 {[%clk 0:02:03]}  N5f6 {[%clk 0:02:14]} 15. Nc3 {[%clk 0:01:39]}  e5 {[%clk 0:02:08]}
16. d5 {[%clk 0:01:34]}  cxd5 {[%clk 0:02:01]} 17. Nxd5 {[%clk 0:01:35]}  Nxd5 {[%clk 0:02:02]} 18. Bxd5 {[%clk 0:01:34]}  Nf6 {[%clk 0:01:59]}
19. Ba2 {[%clk 0:01:30]}  Bg4 {[%clk 0:01:59]} 20. Qb3 {[%clk 0:01:05]}  Be6 {[%clk 0:01:56]} 21. Qa4 {[%clk 0:00:32]}  Bxa2 {[%clk 0:01:50]}
22. b3 {[%clk 0:00:34]}  b5 {[%clk 0:01:51]} 23. Qxb5 {[%clk 0:00:31]}  Rab8 {[%clk 0:01:46]} 24. Qxa5 {[%clk 0:00:30]}  Bxb3 {[%clk 0:01:46]}
25. Rc7 {[%clk 0:00:02]}  Qe6 {[%clk 0:01:30]} 26. Rfc1 {[%clk 0:00:18]}  Bd5 {[%clk 0:01:16]} 27. Nd2 {[%clk 0:00:14]}  Qg4 {[%clk 0:01:15]}
28. f3 {[%clk 0:00:11]}  Qg5 {[%clk 0:01:16]} 29. e4 {[%clk 0:00:11]}  Be6 {[%clk 0:01:04]} 30. Nf1 {[%clk 0:00:12]}  Red8 {[%clk 0:00:59]}
31. Qa7 {[%clk 0:00:11]}  Ra8 {[%clk 0:00:57]} 32. Qc5 {[%clk 0:00:12]}  Rac8 {[%clk 0:00:46]} 33. Qa7 {[%clk 0:00:10]}  Qxc1 {[%clk 0:00:49]}
34. Rxc1 {[%clk 0:00:11]}  Rxc1 {[%clk 0:00:50]} 35. Qb6 {[%clk 0:00:04]}  Rdd1 {[%clk 0:00:49]} 36. Qb8+ {[%clk 0:00:05]}  Kh7 {[%clk 0:00:50]}
37. h3 {[%clk 0:00:06]}  Rxf1+ {[%clk 0:00:50]} 38. Kh2 {[%clk 0:00:07]}  Nh5 {[%clk 0:00:49]} 39. g4 {[%clk 0:00:05]}  Nf4 {[%clk 0:00:50]}
40. Qxe5 {[%clk 0:00:03]}  Rxf3 {[%clk 0:00:44]} 41. a4 {[%clk 0:00:04]}  Rxh3# {[%clk 0:00:39]} 0-1

[Event "2026 Biel Blitz Open"]
[Site "Biel, CH"]
[Date "2026.07.19"]
[Round "4"]
[White "Stefan, Romulus-Cristian"]
[Black "Tcheau, Alain"]
[Result "1-0"]
[Board "36"]
[TimeControl "180+2"]
[WhiteFideId "1232835"]
[BlackFideId "1306014"]
[WhiteElo "2048"]
[BlackElo "1777"]
[WhiteTitle "CM"]
[WhiteClock "0:01:34"]
[BlackClock "0:01:19"]
[Variant "Standard"]
[EndDate "2026.07.19"]
[EndTime "12:47:23"]

1. d4 {[%clk 0:03:03]}  c6 {[%clk 0:03:02]} 2. Nf3 {[%clk 0:03:04]}  d5 {[%clk 0:03:03]} 3. c4 {[%clk 0:03:05]}  e6 {[%clk 0:03:04]}
4. Qb3 {[%clk 0:03:06]}  Qb6 {[%clk 0:03:03]} 5. Nc3 {[%clk 0:03:06]}  Qxb3 {[%clk 0:03:04]} 6. axb3 {[%clk 0:03:07]}  a6 {[%clk 0:03:04]}
7. c5 {[%clk 0:03:04]}  Nf6 {[%clk 0:03:04]} 8. Bf4 {[%clk 0:03:05]}  Be7 {[%clk 0:03:04]} 9. h3 {[%clk 0:03:04]}  Nbd7 {[%clk 0:03:04]}
10. b4 {[%clk 0:03:06]}  O-O {[%clk 0:02:46]} 11. b5 {[%clk 0:03:05]}  cxb5 {[%clk 0:02:46]} 12. Nxb5 {[%clk 0:03:06]}  Ne4 {[%clk 0:02:23]}
13. e3 {[%clk 0:03:04]}  f6 {[%clk 0:02:21]} 14. Bd3 {[%clk 0:02:59]}  g5 {[%clk 0:02:16]} 15. Bh2 {[%clk 0:03:00]}  Nb8 {[%clk 0:02:05]}
16. Nc7 {[%clk 0:02:46]}  Ra7 {[%clk 0:02:06]} 17. Nxe6 {[%clk 0:02:46]}  Bxe6 {[%clk 0:02:02]} 18. b4 {[%clk 0:02:44]}  Nc6 {[%clk 0:01:56]}
19. Rb1 {[%clk 0:02:38]}  Nc3 {[%clk 0:01:53]} 20. Rb3 {[%clk 0:02:38]}  Nb5 {[%clk 0:01:53]} 21. O-O {[%clk 0:02:37]}  h6 {[%clk 0:01:48]}
22. Ra1 {[%clk 0:02:36]}  Raa8 {[%clk 0:01:45]} 23. Nd2 {[%clk 0:02:21]}  f5 {[%clk 0:01:44]} 24. Nf3 {[%clk 0:02:07]}  Kg7 {[%clk 0:01:44]}
25. Ne5 {[%clk 0:02:04]}  Nxe5 {[%clk 0:01:44]} 26. Bxe5+ {[%clk 0:02:05]}  Bf6 {[%clk 0:01:45]} 27. Bh2 {[%clk 0:02:01]}  Kf7 {[%clk 0:01:39]}
28. Bxb5 {[%clk 0:01:54]}  axb5 {[%clk 0:01:40]} 29. Rba3 {[%clk 0:01:55]}  Ra4 {[%clk 0:01:40]} 30. Rxa4 {[%clk 0:01:55]}  bxa4 {[%clk 0:01:41]}
31. Rxa4 {[%clk 0:01:56]}  Bd7 {[%clk 0:01:36]} 32. Ra7 {[%clk 0:01:57]}  Bc6 {[%clk 0:01:37]} 33. b5 {[%clk 0:01:54]}  Bxb5 {[%clk 0:01:38]}
34. Rxb7+ {[%clk 0:01:53]}  Kg6 {[%clk 0:01:37]} 35. Rxb5 {[%clk 0:01:54]}  Ra8 {[%clk 0:01:38]} 36. Bd6 {[%clk 0:01:49]}  Rc8 {[%clk 0:01:35]}
37. Rb6 {[%clk 0:01:47]}  Kf7 {[%clk 0:01:35]} 38. Ra6 {[%clk 0:01:39]}  h5 {[%clk 0:01:35]} 39. Kf1 {[%clk 0:01:38]}  h4 {[%clk 0:01:36]}
40. Ke2 {[%clk 0:01:39]}  Bd8 {[%clk 0:01:31]} 41. Be5 {[%clk 0:01:37]}  Be7 {[%clk 0:01:29]} 42. Ra7 {[%clk 0:01:37]}  Ke6 {[%clk 0:01:29]}
43. Ra6+ {[%clk 0:01:36]}  Kf7 {[%clk 0:01:30]} 44. Kd3 {[%clk 0:01:38]}  Rd8 {[%clk 0:01:26]} 45. Kc3 {[%clk 0:01:39]}  Rc8 {[%clk 0:01:27]}
46. Kb4 {[%clk 0:01:40]}  Ke8 {[%clk 0:01:28]} 47. Kb5 {[%clk 0:01:39]}  Kd7 {[%clk 0:01:28]} 48. Ra7+ {[%clk 0:01:39]}  Ke8 {[%clk 0:01:30]}
49. c6 {[%clk 0:01:37]}  Bd8 {[%clk 0:01:21]} 50. c7 {[%clk 0:01:33]}  Be7 {[%clk 0:01:19]} 51. Kc6 {[%clk 0:01:34]} 1-0

[Event "2026 Biel Blitz Open"]
[Site "Biel, CH"]
[Date "2026.07.19"]
[Round "4"]
[White "Materia, Matteo"]
[Black "Bajraktari, Perparim"]
[Result "1-0"]
[Board "37"]
[TimeControl "180+2"]
[WhiteFideId "45150575"]
[BlackFideId "1307711"]
[WhiteElo "1881"]
[BlackElo "2045"]
[WhiteClock "0:00:07"]
[BlackClock "0:00:17"]
[Variant "Standard"]
[EndDate "2026.07.19"]
[EndTime "12:54:33"]

1. Nf3 {[%clk 0:03:02]}  Nf6 {[%clk 0:03:03]} 2. d4 {[%clk 0:03:03]}  g6 {[%clk 0:03:05]} 3. g3 {[%clk 0:03:05]}  Bg7 {[%clk 0:03:06]}
4. Bg2 {[%clk 0:03:06]}  d6 {[%clk 0:03:07]} 5. O-O {[%clk 0:03:05]}  c6 {[%clk 0:03:07]} 6. c4 {[%clk 0:02:53]}  O-O {[%clk 0:03:08]}
7. Nc3 {[%clk 0:02:54]}  a5 {[%clk 0:03:05]} 8. Bf4 {[%clk 0:02:50]}  Nbd7 {[%clk 0:03:00]} 9. Qd2 {[%clk 0:02:50]}  Re8 {[%clk 0:02:57]}
10. Bh6 {[%clk 0:02:48]}  Qc7 {[%clk 0:02:53]} 11. Bxg7 {[%clk 0:02:47]}  Kxg7 {[%clk 0:02:54]} 12. Rad1 {[%clk 0:02:34]}  a4 {[%clk 0:02:55]}
13. Qc2 {[%clk 0:02:29]}  a3 {[%clk 0:02:56]} 14. b3 {[%clk 0:02:29]}  e5 {[%clk 0:02:55]} 15. dxe5 {[%clk 0:02:29]}  Nxe5 {[%clk 0:02:53]}
16. Nd4 {[%clk 0:02:25]}  Bd7 {[%clk 0:02:39]} 17. h3 {[%clk 0:02:26]}  Be6 {[%clk 0:02:22]} 18. f4 {[%clk 0:02:23]}  Ned7 {[%clk 0:02:22]}
19. e4 {[%clk 0:02:21]}  Nc5 {[%clk 0:02:16]} 20. g4 {[%clk 0:02:11]}  Bxg4 {[%clk 0:02:14]} 21. hxg4 {[%clk 0:02:10]}  Nxg4 {[%clk 0:02:14]}
22. b4 {[%clk 0:02:05]}  Na6 {[%clk 0:02:10]} 23. Qe2 {[%clk 0:02:02]}  h5 {[%clk 0:02:10]} 24. b5 {[%clk 0:02:00]}  Nc5 {[%clk 0:02:06]}
25. Bf3 {[%clk 0:01:56]}  Nf6 {[%clk 0:02:02]} 26. Qg2 {[%clk 0:01:57]}  Na4 {[%clk 0:01:49]} 27. Nxa4 {[%clk 0:01:54]}  Rxa4 {[%clk 0:01:53]}
28. Nf5+ {[%clk 0:01:54]}  Kh7 {[%clk 0:01:44]} 29. Nxd6 {[%clk 0:01:54]}  Rd8 {[%clk 0:01:35]} 30. e5 {[%clk 0:01:55]}  Ne8 {[%clk 0:01:33]}
31. bxc6 {[%clk 0:01:46]}  bxc6 {[%clk 0:01:34]} 32. Bxc6 {[%clk 0:01:45]}  Nxd6 {[%clk 0:01:22]} 33. Bxa4 {[%clk 0:01:46]}  Nf5 {[%clk 0:01:22]}
34. Rxd8 {[%clk 0:01:46]}  Qxd8 {[%clk 0:01:20]} 35. Qf2 {[%clk 0:01:32]}  h4 {[%clk 0:01:20]} 36. Bc2 {[%clk 0:01:26]}  Ng3 {[%clk 0:01:21]}
37. Re1 {[%clk 0:01:23]}  Qa8 {[%clk 0:01:13]} 38. Qh2 {[%clk 0:01:15]}  Qf3 {[%clk 0:01:05]} 39. Qxh4+ {[%clk 0:01:15]}  Kg8 {[%clk 0:01:01]}
40. Bd1 {[%clk 0:00:26]}  Qc3 {[%clk 0:00:58]} 41. Kf2 {[%clk 0:00:17]}  Nf5 {[%clk 0:00:57]} 42. Qd8+ {[%clk 0:00:13]}  Kg7 {[%clk 0:00:59]}
43. e6 {[%clk 0:00:10]}  Qg3+ {[%clk 0:00:55]} 44. Ke2 {[%clk 0:00:11]}  Qe3+ {[%clk 0:00:44]} 45. Kf1 {[%clk 0:00:12]}  Ng3+ {[%clk 0:00:40]}
46. Kg2 {[%clk 0:00:12]}  Qxe1 {[%clk 0:00:42]} 47. e7 {[%clk 0:00:11]}  Ne4 {[%clk 0:00:30]} 48. Qd4+ {[%clk 0:00:10]}  f6 {[%clk 0:00:25]}
49. e8=Q {[%clk 0:00:06]}  Qg3+ {[%clk 0:00:27]} 50. Kf1 {[%clk 0:00:06]}  Qxf4+ {[%clk 0:00:27]} 51. Ke2 {[%clk 0:00:06]}  Ng3+ {[%clk 0:00:27]}
52. Kd3 {[%clk 0:00:07]}  Qf5+ {[%clk 0:00:22]} 53. Kc3 {[%clk 0:00:07]}  Qb1 {[%clk 0:00:17]} 54. Qe7+ {[%clk 0:00:07]} 1-0

[Event "2026 Biel Blitz Open"]
[Site "Biel, CH"]
[Date "2026.07.19"]
[Round "4"]
[White "Vedant Nayudu"]
[Black "Rappazzo, Johannes"]
[Result "0-1"]
[Board "38"]
[TimeControl "180+2"]
[WhiteFideId "33369780"]
[BlackFideId "1340069"]
[WhiteElo "1732"]
[BlackElo "2032"]
[BlackTitle "FM"]
[WhiteClock "0:00:03"]
[BlackClock "0:01:55"]
[Variant "Standard"]
[EndDate "2026.07.19"]
[EndTime "12:46:11"]

1. e4 {[%clk 0:03:03]}  c5 {[%clk 0:03:04]} 2. c3 {[%clk 0:03:02]}  Nf6 {[%clk 0:03:03]} 3. e5 {[%clk 0:03:06]}  Nd5 {[%clk 0:03:05]}
4. Nf3 {[%clk 0:03:06]}  Nc6 {[%clk 0:03:06]} 5. Bc4 {[%clk 0:03:07]}  Nb6 {[%clk 0:03:07]} 6. Bb3 {[%clk 0:03:08]}  c4 {[%clk 0:03:09]}
7. Bc2 {[%clk 0:03:10]}  d5 {[%clk 0:03:10]} 8. exd6 {[%clk 0:03:11]}  Qxd6 {[%clk 0:03:12]} 9. O-O {[%clk 0:03:10]}  Bg4 {[%clk 0:03:13]}
10. h3 {[%clk 0:03:11]}  Bh5 {[%clk 0:03:13]} 11. b3 {[%clk 0:03:02]}  O-O-O {[%clk 0:03:04]} 12. a4 {[%clk 0:02:46]}  Ne5 {[%clk 0:03:02]}
13. Be4 {[%clk 0:02:08]}  e6 {[%clk 0:02:44]} 14. Ba3 {[%clk 0:01:36]}  Qc7 {[%clk 0:02:41]} 15. Bxf8 {[%clk 0:01:32]}  Rhxf8 {[%clk 0:02:41]}
16. a5 {[%clk 0:01:03]}  Nd5 {[%clk 0:02:42]} 17. Qe2 {[%clk 0:00:36]}  f5 {[%clk 0:02:36]} 18. Bxd5 {[%clk 0:00:37]}  Rxd5 {[%clk 0:02:37]}
19. bxc4 {[%clk 0:00:17]}  Nxf3+ {[%clk 0:02:37]} 20. gxf3 {[%clk 0:00:18]}  Re5 {[%clk 0:02:26]} 21. Qd3 {[%clk 0:00:20]}  Rd8 {[%clk 0:02:25]}
22. Qc2 {[%clk 0:00:17]}  Bxf3 {[%clk 0:02:24]} 23. d4 {[%clk 0:00:11]}  Qf7 {[%clk 0:01:59]} 24. Kh2 {[%clk 0:00:05]}  Re2 {[%clk 0:01:58]}
25. Qd3 {[%clk 0:00:05]}  Qc7+ {[%clk 0:01:58]} 26. Kg1 {[%clk 0:00:03]}  Qf4 {[%clk 0:01:58]} 27. Nd2 {[%clk 0:00:04]}  Qg5+ {[%clk 0:01:57]}
28. Kh2 {[%clk 0:00:03]}  Qg2# {[%clk 0:01:55]} 0-1

[Event "2026 Biel Blitz Open"]
[Site "Biel, CH"]
[Date "2026.07.19"]
[Round "4"]
[White "Kamildjanov, Saidbek"]
[Black "Hirzel, Robin"]
[Result "0-1"]
[Board "39"]
[TimeControl "180+2"]
[WhiteFideId "151105026"]
[BlackFideId "1342320"]
[WhiteElo "1659"]
[BlackElo "2022"]
[WhiteClock "0:00:05"]
[BlackClock "0:00:08"]
[Variant "Standard"]
[EndDate "2026.07.19"]
[EndTime "12:55:06"]

1. e4 {[%clk 0:03:03]}  e6 {[%clk 0:03:04]} 2. d4 {[%clk 0:03:04]}  d5 {[%clk 0:03:05]} 3. exd5 {[%clk 0:03:05]}  exd5 {[%clk 0:03:07]}
4. Bd3 {[%clk 0:03:05]}  Bd6 {[%clk 0:03:08]} 5. h3 {[%clk 0:03:05]}  Nf6 {[%clk 0:03:09]} 6. Bg5 {[%clk 0:03:05]}  O-O {[%clk 0:03:10]}
7. Nf3 {[%clk 0:03:07]}  Re8+ {[%clk 0:03:11]} 8. Be3 {[%clk 0:03:03]}  Bf4 {[%clk 0:02:56]} 9. O-O {[%clk 0:02:48]}  Bxe3 {[%clk 0:02:57]}
10. fxe3 {[%clk 0:02:49]}  Rxe3 {[%clk 0:02:34]} 11. Ne5 {[%clk 0:02:46]}  Nc6 {[%clk 0:02:23]} 12. Qd2 {[%clk 0:02:47]}  Rg3 {[%clk 0:02:00]}
13. Qf4 {[%clk 0:02:44]}  Rxd3 {[%clk 0:01:30]} 14. Nxd3 {[%clk 0:02:42]}  Be6 {[%clk 0:01:27]} 15. Nc3 {[%clk 0:02:40]}  a6 {[%clk 0:01:28]}
16. Rad1 {[%clk 0:02:30]}  Na5 {[%clk 0:01:18]} 17. b3 {[%clk 0:02:28]}  Nc6 {[%clk 0:01:19]} 18. Ne5 {[%clk 0:02:14]}  Ne7 {[%clk 0:01:16]}
19. Qf3 {[%clk 0:01:57]}  c6 {[%clk 0:01:16]} 20. g4 {[%clk 0:01:57]}  Qe8 {[%clk 0:00:54]} 21. Ne2 {[%clk 0:01:57]}  Ne4 {[%clk 0:00:49]}
22. Ng3 {[%clk 0:01:48]}  Nxg3 {[%clk 0:00:49]} 23. Qxg3 {[%clk 0:01:48]}  Ng6 {[%clk 0:00:50]} 24. Nxg6 {[%clk 0:01:43]}  hxg6 {[%clk 0:00:52]}
25. Rfe1 {[%clk 0:01:44]}  Qd7 {[%clk 0:00:53]} 26. Rd2 {[%clk 0:01:30]}  a5 {[%clk 0:00:53]} 27. Rde2 {[%clk 0:01:24]}  a4 {[%clk 0:00:54]}
28. Re3 {[%clk 0:00:55]}  Qe7 {[%clk 0:00:52]} 29. Kh2 {[%clk 0:00:34]}  Qf6 {[%clk 0:00:48]} 30. Rd3 {[%clk 0:00:31]}  axb3 {[%clk 0:00:47]}
31. axb3 {[%clk 0:00:31]}  Ra2 {[%clk 0:00:48]} 32. Re2 {[%clk 0:00:31]}  Qf1 {[%clk 0:00:45]} 33. Rf2 {[%clk 0:00:31]}  Qc1 {[%clk 0:00:36]}
34. Rc3 {[%clk 0:00:25]}  Ra1 {[%clk 0:00:37]} 35. Qg2 {[%clk 0:00:21]}  Qe1 {[%clk 0:00:38]} 36. Rd3 {[%clk 0:00:15]}  Qc1 {[%clk 0:00:23]}
37. Rdd2 {[%clk 0:00:14]}  Qb1 {[%clk 0:00:09]} 38. Kg3 {[%clk 0:00:08]}  Qe1 {[%clk 0:00:08]} 39. Rde2 {[%clk 0:00:08]}  Qd1 {[%clk 0:00:08]}
40. Qf3 {[%clk 0:00:06]}  Qxd4 {[%clk 0:00:07]} 41. Rxe6 {[%clk 0:00:05]}  fxe6 {[%clk 0:00:08]} 42. Qf8+ {[%clk 0:00:06]}  Kh7 {[%clk 0:00:09]}
43. Qe7 {[%clk 0:00:06]}  Qe3+ {[%clk 0:00:09]} 44. Rf3 {[%clk 0:00:06]}  Rg1+ {[%clk 0:00:10]} 45. Kh4 {[%clk 0:00:05]}  Qh6# {[%clk 0:00:08]} 0-1